bitfinex-derivatives/quotes_BTCF0:USTF0_20251209
["timestamp","ask_amount","ask_price","bid_price","bid_amount"]
[1765244062182,0.06840633,90202.0,90201.0,0.05686]
[1765244062577,0.06840633,90202.0,90201.0,0.0679454]
[1765244062795,0.00016633,90202.0,90201.0,0.0679454]
[1765244063687,0.00316633,90202.0,90201.0,0.4479454]
[1765244064293,0.0393537,90216.0,90215.0,0.05686]
[1765244064494,0.0693237,90216.0,90215.0,0.05686]
[1765244065287,0.0703237,90216.0,90215.0,0.05686]
[1765244066089,0.05924,90216.0,90215.0,0.05686]
[1765244068494,0.04934,90216.0,90215.0,0.05686]
[1765244074192,0.0110842,90211.0,90210.0,0.0110843]
[1765244074393,0.0693242,90211.0,90210.0,0.06788568]
[1765244074592,0.0693242,90211.0,90210.0,0.05686]
[1765244075196,0.0703242,90211.0,90210.0,0.02805]
[1765244075395,0.0859347,90207.0,90206.0,0.00016633]
[1765244076295,0.4959347,90207.0,90206.0,0.00016633]
[1765244076494,0.05824,90194.0,90193.0,0.0110863]
[1765244076707,0.05824,90191.0,90190.0,0.0679468]
[1765244077198,0.05824,90191.0,90190.0,0.07899173]
[1765244077897,0.069326,90196.0,90195.0,0.05686]
[1765244078096,0.05824,90196.0,90195.0,0.05686]
[1765244078494,0.00016633,90200.0,90199.0,0.05686]
[1765244078998,0.00016633,90200.0,90199.0,0.0679457]
[1765244079198,0.00016633,90200.0,90199.0,0.2779457]
[1765244079698,0.00216633,90200.0,90199.0,0.2779457]
[1765244080694,0.00916633,90200.0,90199.0,0.2779457]
[1765244081097,0.00916633,90200.0,90199.0,0.0679457]
[1765244081296,0.06740633,90200.0,90199.0,0.0679457]
[1765244083293,0.06740633,90200.0,90199.0,0.05686]
[1765244086202,0.00916633,90200.0,90199.0,0.05686]
[1765244086399,0.00916633,90200.0,90199.0,0.42686]
[1765244087904,0.0278,90215.0,90214.0,0.05694]
[1765244088097,0.05250036,90215.0,90214.0,0.05694]
[1765244088710,0.08123036,90215.0,90214.0,0.05694]
[1765244092204,0.05653,90213.0,90205.0,0.00016633]
[1765244092408,0.05653,90206.0,90205.0,0.05710633]
[1765244093295,0.05653,90212.0,90211.0,0.05694]
[1765244093614,0.08129273,90212.0,90211.0,0.05694]
[1765244093803,0.05653,90212.0,90211.0,0.05694]
[1765244094608,0.05653,90212.0,90211.0,0.06094]
[1765244096205,0.05653,90212.0,90211.0,0.06194]
[1765244097015,0.0388836,90216.0,90215.0,0.05694]
[1765244097215,0.00016633,90224.0,90215.0,0.05694]
[1765244097216,0.05669633,90224.0,90223.0,0.05694]
[1765244097407,0.08146167,90224.0,90223.0,0.05694]
[1765244097907,0.00016633,90224.0,90223.0,0.47694]
[1765244098615,0.02796633,90224.0,90223.0,0.05694]
[1765244098815,0.02796633,90224.0,90223.0,0.05894]
[1765244099214,0.05669633,90224.0,90223.0,0.05894]
[1765244100619,0.00016633,90224.0,90223.0,0.47894]
[1765244100810,0.00116633,90224.0,90223.0,0.47694]
[1765244101312,0.00016633,90224.0,90223.0,0.47694]
[1765244101619,0.00216633,90224.0,90223.0,0.47694]
[1765244102119,0.00116633,90224.0,90223.0,0.47694]
[1765244102509,0.05867633,90224.0,90223.0,0.05694]
[1765244103216,0.07573633,90224.0,90223.0,0.02863]
[1765244103421,0.05751,90219.0,90218.0,0.05851]
[1765244103712,0.05751,90219.0,90214.0,0.17331498]
[1765244103918,0.05751,90208.0,90207.0,0.0695946]
[1765244104117,0.05751,90208.0,90207.0,0.0895946]
[1765244104611,0.05751,90208.0,90207.0,0.07851]
[1765244104815,0.0847945,90208.0,90207.0,0.07851]
[1765244105411,0.0867945,90208.0,90207.0,0.07851]
[1765244106118,0.07571,90208.0,90207.0,0.05851]
[1765244106314,0.06051,90208.0,90207.0,0.28851]
[1765244107310,0.05851,90208.0,90207.0,0.28851]
[1765244107511,0.06151,90208.0,90207.0,0.3055]
[1765244108022,0.002,90208.0,90207.0,0.3055]
[1765244108315,0.05767633,90224.0,90223.0,0.05851]
[1765244108919,0.00016633,90224.0,90223.0,0.45851]
[1765244110321,0.0685913,90235.0,90234.0,0.02865]
[1765244111206,0.0685913,90235.0,90234.0,0.05851]
[1765244111710,0.06051,90235.0,90234.0,0.0755]
[1765244112009,0.003,90235.0,90234.0,0.0755]
[1765244112209,0.03173,90235.0,90234.0,0.0755]
[1765244112620,0.03273,90235.0,90234.0,0.0755]
[1765244113421,0.004,90235.0,90234.0,0.0755]
[1765244113813,0.00016633,90244.0,90243.0,0.0872402]
[1765244114117,0.05815786,90265.0,90264.0,0.0295]
[1765244114315,0.05705,90257.0,90256.0,0.0693586]
[1765244114514,0.05815786,90265.0,90264.0,0.05828]
[1765244115827,0.05915786,90265.0,90264.0,0.05828]
[1765244117019,0.00410786,90265.0,90264.0,0.05828]
[1765244117418,0.06015786,90265.0,90264.0,0.05828]
[1765244117613,0.06015786,90265.0,90264.0,0.0295]
[1765244118025,0.05705,90259.0,90258.0,0.0693583]
[1765244118624,0.00310786,90265.0,90264.0,0.0693577]
[1765244118827,0.00016623,90274.0,90273.0,0.0693566]
[1765244119129,0.05815755,90290.0,90289.0,0.05828]
[1765244119328,0.02974755,90290.0,90289.0,0.05828]
[1765244119519,0.00110755,90290.0,90289.0,0.05828]
[1765244119922,0.00110755,90290.0,90279.0,0.01788]
[1765244119923,0.05705,90280.0,90279.0,0.05828]
[1765244122225,0.05705,90280.0,90279.0,0.05928]
[1765244122630,0.02864,90280.0,90279.0,0.05828]
[1765244122926,0.05705,90280.0,90279.0,0.06028]
[1765244123117,0.07189,90280.0,90279.0,0.002]
[1765244123321,0.05705,90271.0,90270.0,0.00016613]
[1765244124727,0.05805,90271.0,90270.0,0.00016613]
[1765244125829,0.05805,90271.0,90270.0,0.05844613]
[1765244126026,0.05805,90271.0,90270.0,0.00016613]
[1765244126731,0.05705,90271.0,90270.0,0.00016613]
[1765244126922,0.05805,90271.0,90270.0,0.00016613]
[1765244128329,0.05705,90252.0,90251.0,0.0693592]
[1765244128525,0.05705,90252.0,90251.0,0.05828]
[1765244128733,0.05705,90252.0,90246.0,0.0693598]
[1765244128734,0.05705,90247.0,90246.0,0.0693598]
[1765244130230,0.05705,90247.0,90246.0,0.0713598]
[1765244130929,0.0681291,90253.0,90252.0,0.05828]
[1765244131731,0.05705,90253.0,90252.0,0.05828]
[1765244132631,0.00016613,90256.0,90255.0,0.05828]
[1765244133428,0.00016613,90256.0,90255.0,0.44828]
[1765244134125,0.00016613,90256.0,90255.0,0.20828]
[1765244134721,0.05721613,90256.0,90255.0,0.05828]
[1765244134931,0.05721613,90256.0,90255.0,0.05928]
[1765244135430,0.37857613,90256.0,90245.0,0.0110799]
[1765244135619,0.37857613,90256.0,90245.0,0.0693599]
[1765244135620,0.02864,90246.0,90245.0,0.0693599]
[1765244135818,0.02864,90246.0,90243.0,0.01086777]
[1765244135819,0.0681288,90255.0,90254.0,0.05828]
[1765244136225,0.00016613,90256.0,90255.0,0.05828]
[1765244137127,0.02880613,90256.0,90255.0,0.05828]
[1765244137635,0.0681305,90241.0,90240.0,0.00110816]
[1765244137824,0.4181305,90241.0,90240.0,0.00110816]
[1765244138227,0.05705,90238.0,90225.0,0.0110824]
[1765244138435,0.0681309,90238.0,90225.0,0.0110824]
[1765244138635,0.0681309,90238.0,90227.0,0.0110821]
[1765244138828,0.0681309,90238.0,90230.0,0.0110818]
[1765244139029,0.0681309,90238.0,90227.0,0.0110822]
[1765244139621,0.0681309,90238.0,90237.0,0.05844613]
[1765244139622,0.05905,90238.0,90237.0,0.05844613]
[1765244140521,0.06105,90238.0,90237.0,0.05844613]
[1765244140930,0.05905,90238.0,90237.0,0.05844613]
[1765244141130,0.06005,90238.0,90237.0,0.05844613]
[1765244141533,0.05805,90238.0,90237.0,0.05844613]
[1765244141729,0.05805,90238.0,90237.0,0.05944613]
[1765244143332,0.02964,90238.0,90237.0,0.05944613]
[1765244144330,0.001,90238.0,90237.0,0.05944613]
[1765244145626,0.001,90238.0,90237.0,0.45944613]
[1765244145935,0.05723,90251.0,90250.0,0.05625]
[1765244147032,0.05923,90251.0,90250.0,0.05625]
[1765244147233,0.06123,90251.0,90250.0,0.05625]
[1765244147423,0.05723,90244.0,90243.0,0.07394]
[1765244147627,0.05723,90244.0,90243.0,0.05625]
[1765244148422,0.07463,90240.0,90239.0,0.02863]
[1765244148637,0.05723,90238.0,90237.0,0.05641613]
[1765244149329,0.05723,90238.0,90237.0,0.03015572]
[1765244149937,0.05723,90231.0,90230.0,0.20374823]
[1765244150130,0.0683125,90225.0,90220.0,0.011083]
[1765244150434,0.05723,90221.0,90220.0,0.067333]
[1765244150630,0.05723,90221.0,90220.0,0.107333]
[1765244150835,0.05723,90221.0,90220.0,0.457333]
[1765244151236,0.05723,90221.0,90220.0,0.46831302]
[1765244152125,0.05723,90221.0,90220.0,0.47031302]
[1765244152328,0.05723,90221.0,90220.0,0.21031302]
[1765244152525,0.05723,90228.0,90227.0,0.0397122]
[1765244153439,0.05723,90228.0,90227.0,0.0673322]
[1765244153631,0.05723,90228.0,90227.0,0.0683322]
[1765244153838,0.05823,90228.0,90227.0,0.0683322]
[1765244154034,0.001,90228.0,90227.0,0.4483322]
[1765244156237,0.00016623,90234.0,90233.0,0.05625]
[1765244156442,0.00016623,90234.0,90233.0,0.47625]
[1765244156644,0.00016623,90234.0,90233.0,0.4873315]
[1765244157737,0.00116623,90234.0,90233.0,0.4873315]
[1765244158844,0.00216623,90234.0,90233.0,0.4873315]
[1765244159037,0.00216623,90234.0,90233.0,0.4973315]
[1765244159547,0.00016623,90234.0,90233.0,0.4973315]
[1765244159738,0.00016623,90234.0,90233.0,0.4993315]
[1765244162741,0.05926623,90234.0,90233.0,0.4993315]
[1765244162941,0.05926623,90234.0,90233.0,0.2193315]
[1765244163646,0.05926623,90234.0,90233.0,0.002]
[1765244163955,0.47926623,90234.0,90233.0,0.002]
[1765244164642,0.48026623,90234.0,90233.0,0.002]
[1765244165742,0.48026623,90234.0,90224.0,0.0110825]
[1765244165743,0.0705625,90225.0,90224.0,0.0110825]
[1765244165955,0.05948,90221.0,90220.0,0.01098002]
[1765244166143,0.05948,90219.0,90218.0,8.586e-05]
[1765244166651,0.30948,90219.0,90218.0,8.586e-05]
[1765244168451,0.30948,90219.0,90218.0,0.00308586]
[1765244170439,0.30948,90219.0,90218.0,2.776e-05]
[1765244170647,0.0110853,90202.0,90190.0,0.20374823]
[1765244170948,0.05948,90192.0,90191.0,0.0664166]
[1765244171462,0.05956586,90192.0,90191.0,0.0664166]
[1765244172158,0.05956586,90192.0,90191.0,0.0764166]
[1765244173147,0.05956586,90192.0,90191.0,0.0804166]
[1765244173749,8.586e-05,90192.0,90191.0,0.4604166]
[1765244174949,0.00016623,90201.0,90200.0,0.0828655]
[1765244175150,0.00016623,90201.0,90200.0,0.4928655]
[1765244176153,0.00016623,90201.0,90200.0,0.4958655]
[1765244176353,0.00016623,90201.0,90200.0,0.5018655]
[1765244179360,0.05770623,90201.0,90200.0,0.0754155]
[1765244179567,0.05770623,90201.0,90200.0,0.4454155]
[1765244180365,0.05770623,90201.0,90200.0,0.0754155]
[1765244180562,0.05770623,90201.0,90200.0,0.06433]
[1765244181568,0.05770623,90201.0,90200.0,0.46433]
[1765244181957,0.02837623,90201.0,90200.0,0.46433]
[1765244182965,0.00016623,90201.0,90200.0,0.48078]
[1765244183158,0.01701,90240.0,90200.0,0.42545]
[1765244183467,0.02821,90211.0,90210.0,0.27016253]
[1765244183764,0.05754,90211.0,90210.0,0.0664143]
[1765244184262,0.05754,90214.0,90213.0,0.0110838]
[1765244184471,0.05754,90214.0,90213.0,0.0664138]
[1765244184863,0.05754,90214.0,90213.0,0.05533]
[1765244185163,0.05754,90202.0,90201.0,0.02810623]
[1765244185370,0.05754,90202.0,90201.0,0.00016623]
[1765244186058,0.05754,90202.0,90201.0,0.02810623]
[1765244186763,0.05754,90202.0,90201.0,0.03110623]
[1765244187375,0.05754,90202.0,90201.0,0.00316623]
[1765244187666,0.05754,90202.0,90201.0,0.03710623]
[1765244187861,0.05754,90202.0,90201.0,0.00916623]
[1765244188863,0.05754,90202.0,90201.0,0.06449623]
[1765244189869,0.05754,90202.0,90201.0,0.00916623]
[1765244191262,0.05754,90202.0,90201.0,0.03710623]
[1765244191457,0.07455,90202.0,90201.0,0.03710623]
[1765244193173,0.07455,90202.0,90201.0,0.06449623]
[1765244195275,0.07455,90202.0,90201.0,0.00916623]
[1765244196966,0.05754,90202.0,90201.0,0.06449623]
[1765244197373,0.01701,90208.0,90201.0,0.06449623]
[1765244197374,0.05754,90208.0,90207.0,0.05533]
[1765244197567,0.01701,90216.0,90215.0,0.05533]
[1765244197568,0.0856336,90216.0,90215.0,0.05533]
[1765244198074,0.0686236,90216.0,90215.0,0.05533]
[1765244198573,0.0856336,90216.0,90215.0,0.05533]
[1765244198773,0.0856336,90216.0,90215.0,0.05733]
[1765244199272,0.0856336,90216.0,90215.0,0.05833]
[1765244203773,0.07179,90216.0,90215.0,0.05955]
[1765244204969,0.07179,90216.0,90215.0,0.003]
[1765244205173,0.07179,90216.0,90215.0,0.03043]
[1765244208869,0.07179,90216.0,90215.0,0.0701237]
[1765244209079,0.0554,90216.0,90215.0,0.4801237]
[1765244209882,0.00016623,90220.0,90219.0,0.0671232]
[1765244210176,0.00016623,90220.0,90219.0,0.4371232]
[1765244210379,0.0682114,90234.0,90233.0,0.05604]
[1765244210579,0.09290167,90234.0,90233.0,0.05604]
[1765244210784,0.02469027,90234.0,90233.0,0.05604]
[1765244210975,0.084601,90237.0,90236.0,0.05604]
[1765244211373,0.05713,90228.0,90227.0,0.06728843]
[1765244212576,0.07352,90237.0,90236.0,0.0671211]
[1765244212973,0.05713,90237.0,90236.0,0.0671211]
[1765244213573,0.07368623,90246.0,90245.0,0.05604]
[1765244213771,0.08476613,90246.0,90245.0,0.05604]
[1765244214980,0.05713,90239.0,90238.0,0.05604]
[1765244217082,0.07352,90230.0,90229.0,0.0385119]
[1765244217280,0.07352,90230.0,90229.0,0.1271219]
[1765244217482,0.07352,90230.0,90229.0,0.4571219]
[1765244218179,0.05713,90228.0,90227.0,0.00016623]
[1765244218678,0.05713,90228.0,90227.0,0.02759623]
[1765244218883,0.05713,90228.0,90227.0,0.05620623]
[1765244219575,0.05813,90228.0,90227.0,0.05620623]
[1765244220484,0.05913,90228.0,90227.0,0.05620623]
[1765244221181,0.05913,90228.0,90227.0,0.42620623]
[1765244221485,0.06101,90228.0,90227.0,0.21620623]
[1765244222288,0.06101,90228.0,90227.0,0.05620623]
[1765244222587,0.29901,90228.0,90227.0,0.00016623]
[1765244222988,0.29901,90228.0,90205.0,0.0110849]
[1765244222989,0.0735,90209.0,90208.0,0.0395844]
[1765244223182,0.0735,90209.0,90208.0,0.0688744]
[1765244224085,0.05901,90209.0,90208.0,0.4908744]
[1765244224879,0.05901,90209.0,90208.0,0.002]
[1765244225982,0.05901,90209.0,90208.0,0.006]
[1765244226289,0.41901,90209.0,90208.0,0.006]
[1765244226484,0.43616,90209.0,90208.0,0.006]
[1765244227392,0.43616,90209.0,90208.0,0.0345]
[1765244227889,0.43616,90209.0,90208.0,0.06379]
[1765244229693,0.07616,90209.0,90208.0,0.06379]
[1765244231388,0.05901,90209.0,90208.0,0.06379]
[1765244232892,0.07591,90209.0,90208.0,0.06379]
[1765244234990,0.05901,90209.0,90208.0,0.06379]
[1765244235190,0.05689,90209.0,90208.0,0.06379]
[1765244235585,0.0679838,90215.0,90214.0,0.05766]
[1765244237797,0.0679838,90215.0,90214.0,0.05866]
[1765244238194,0.0679838,90215.0,90214.0,0.06066]
[1765244239692,0.0679838,90215.0,90214.0,0.03073]
[1765244240001,0.0679838,90215.0,90214.0,0.003]
[1765244240590,0.4879838,90215.0,90214.0,0.003]
[1765244240790,0.067986,90196.0,90195.0,0.05766]
[1765244242000,0.0569,90196.0,90195.0,0.06066]
[1765244242201,0.0569,90196.0,90195.0,0.06766]
[1765244243703,0.0569,90196.0,90195.0,0.01]
[1765244245589,0.4169,90196.0,90195.0,0.01]
[1765244245901,0.0679871,90187.0,90186.0,0.00016623]
[1765244246096,0.4779871,90187.0,90186.0,0.00016623]
[1765244247501,0.4779871,90187.0,90186.0,0.02789623]
[1765244247806,0.4779871,90187.0,90186.0,0.00616623]
[1765244248398,0.2079871,90187.0,90186.0,0.00616623]
[1765244249507,0.0679897,90166.0,90153.0,7.865e-05]
[1765244249803,0.0679897,90166.0,90165.0,0.02883908]
[1765244250002,0.0679897,90166.0,90165.0,0.05876908]
[1765244250202,0.0679897,90166.0,90165.0,0.00110908]
[1765244250405,0.4379897,90166.0,90165.0,0.00110908]
[1765244250706,0.4389897,90166.0,90165.0,0.00110908]
[1765244251102,0.4429897,90166.0,90165.0,0.00110908]
[1765244252206,0.1729897,90166.0,90165.0,0.00110908]
[1765244252606,0.0569,90157.0,90156.0,0.00016632]
[1765244252809,0.0569,90157.0,90156.0,0.05782632]
[1765244253708,0.0679901,90163.0,90162.0,0.05766]
[1765244255108,0.0729901,90163.0,90162.0,0.05766]
[1765244255916,0.0679908,90157.0,90156.0,0.05782632]
[1765244256109,0.0679908,90157.0,90156.0,0.00016632]
[1765244256310,0.0679908,90157.0,90156.0,0.05782632]
[1765244256311,0.1079908,90157.0,90156.0,0.05782632]
[1765244256518,0.1079908,90157.0,90156.0,0.02789632]
[1765244256816,0.0679908,90157.0,90156.0,0.05782632]
[1765244257316,0.0679908,90157.0,90156.0,0.02789632]
[1765244257317,0.4519908,90157.0,90156.0,0.02789632]
[1765244257616,0.2419908,90157.0,90156.0,0.02789632]
[1765244257914,0.2419908,90157.0,90156.0,0.05782632]
[1765244258117,0.2419908,90157.0,90156.0,0.02789632]
[1765244259521,0.0719908,90157.0,90156.0,0.00016632]
[1765244259719,0.4419908,90157.0,90156.0,0.00016632]
[1765244260813,0.0719908,90157.0,90156.0,0.05782632]
[1765244261116,0.1219908,90157.0,90156.0,0.05782632]
[1765244261516,0.4719908,90157.0,90156.0,0.02789632]
[1765244262416,0.4719908,90157.0,90153.0,7.865e-05]
[1765244262417,0.0698812,90154.0,90153.0,7.865e-05]
[1765244262611,0.0704528,90141.0,90140.0,0.02947939]
[1765244262808,0.0704528,90141.0,90140.0,0.00110939]
[1765244263410,0.0704528,90141.0,90140.0,0.00094319]
[1765244263720,0.07053145,90141.0,90140.0,0.00094319]
[1765244263905,0.07053145,90141.0,90140.0,0.00194319]
[1765244264514,0.07053145,90141.0,90140.0,0.00094319]
[1765244264515,0.08053145,90141.0,90140.0,0.00094319]
[1765244265714,0.070454,90131.0,90130.0,0.02837]
[1765244266018,0.0704552,90121.0,90120.0,0.19732683]
[1765244266216,0.0704552,90121.0,90120.0,0.0673453]
[1765244266421,0.0704552,90121.0,90120.0,0.05625]
[1765244266612,0.0704552,90121.0,90120.0,0.06756068]
[1765244266807,0.0296,90121.0,90120.0,0.05625]
[1765244267025,0.05936,90116.0,90115.0,0.0573597]
[1765244267217,0.05936,90116.0,90115.0,0.43865815]
[1765244267422,0.002,90121.0,90120.0,0.0673454]
[1765244267817,0.002,90121.0,90120.0,0.4973454]
[1765244268822,0.002,90121.0,90120.0,0.1773454]
[1765244269125,0.07062062,90130.0,90129.0,0.05625]
[1765244269326,0.05936,90122.0,90121.0,0.0673452]
[1765244269519,0.0704543,90129.0,90128.0,0.05625]
[1765244269825,0.02976642,90130.0,90129.0,0.05625]
[1765244270025,0.05952642,90130.0,90129.0,0.05625]
[1765244270615,0.02976642,90130.0,90129.0,0.13625]
[1765244270929,0.03376642,90130.0,90129.0,0.13625]
[1765244271426,0.07462052,90130.0,90129.0,0.05625]
[1765244272721,0.06452642,90130.0,90129.0,0.05625]
[1765244275026,0.00516642,90130.0,90129.0,0.41625]
[1765244275931,0.0110923,90145.0,90140.0,0.0673429]
[1765244276127,0.05943865,90141.0,90140.0,0.0673429]
[1765244277028,0.06443865,90141.0,90140.0,0.0673429]
[1765244277229,0.06443865,90141.0,90140.0,0.05625]
[1765244279118,0.06343865,90141.0,90140.0,0.05625]
[1765244279330,0.06243865,90141.0,90140.0,0.05625]
[1765244279725,0.06143865,90141.0,90140.0,0.05625]
[1765244280135,0.06243865,90141.0,90140.0,0.05625]
[1765244280821,0.06143865,90141.0,90140.0,0.05625]
[1765244281829,0.05979,90137.0,90136.0,0.0675834]
[1765244282138,0.07636,90132.0,90131.0,0.00016642]
[1765244282533,0.07636,90132.0,90131.0,0.02729642]
[1765244282837,0.05979,90132.0,90131.0,0.05665642]
[1765244283034,0.0874531,90139.0,90138.0,0.05649]
[1765244283223,0.05979,90133.0,90132.0,0.0675839]
[1765244284532,0.05979,90133.0,90132.0,0.05649]
[1765244284738,0.07736,90132.0,90131.0,0.00016642]
[1765244285438,0.07636,90132.0,90131.0,0.00016642]
[1765244285837,0.07636,90132.0,90131.0,0.05665642]
[1765244286132,0.05979,90132.0,90131.0,0.05665642]
[1765244286344,0.004,90132.0,90131.0,0.30665642]
[1765244286829,7.865e-05,90141.0,90140.0,0.05649]
[1765244287028,7.865e-05,90141.0,90140.0,0.4175829]
[1765244288634,0.00016642,90150.0,90149.0,0.0675818]
[1765244289628,0.05995642,90150.0,90149.0,0.0675818]
[1765244289830,0.03015642,90150.0,90149.0,0.0675818]
[1765244290029,0.05995642,90150.0,90149.0,0.0675818]
[1765244290226,0.00116642,90150.0,90149.0,0.0675818]
[1765244290533,0.00116642,90150.0,90149.0,0.4575818]
[1765244290929,0.0110897,90167.0,90164.0,0.05649]
[1765244291131,0.08582262,90165.0,90164.0,0.06758]
[1765244291532,0.06089908,90165.0,90164.0,0.06758]
[1765244291736,0.06089908,90165.0,90164.0,0.05649]
[1765244292633,0.06289908,90165.0,90164.0,0.05649]
[1765244293542,0.07398888,90165.0,90164.0,0.05649]
[1765244294134,0.06289908,90165.0,90164.0,0.05649]
[1765244294944,0.06189908,90165.0,90164.0,0.05649]
[1765244295741,0.06189908,90165.0,90164.0,0.02713]
[1765244295943,0.06189908,90165.0,90164.0,0.0569]
[1765244301950,0.00210908,90165.0,90164.0,0.4269]
[1765244302944,0.00016642,90174.0,90173.0,0.0686289]
[1765244303146,0.00016642,90174.0,90173.0,0.2186289]
[1765244303556,0.00016642,90174.0,90173.0,0.4286289]
[1765244303738,0.0655471,90188.0,90187.0,0.05754]
[1765244304139,0.0823871,90188.0,90187.0,0.05754]
[1765244304343,0.05446,90175.0,90174.0,0.2728085]
[1765244304573,0.05446,90175.0,90174.0,0.0686287]
[1765244305149,0.05446,90175.0,90174.0,0.07991478]
[1765244305347,0.05446,90175.0,90174.0,0.06882608]
[1765244305741,0.05446,90175.0,90174.0,0.07082608]
[1765244306343,0.00016632,90184.0,90174.0,0.07082608]
[1765244306344,0.00016632,90184.0,90183.0,0.05754]
[1765244306536,0.05462632,90184.0,90183.0,0.05754]
[1765244307148,0.05446,90180.0,90179.0,0.02777]
[1765244307355,0.0655486,90175.0,90174.0,0.07082608]
[1765244307549,0.0655486,90175.0,90174.0,0.01328608]
[1765244307752,0.0655497,90166.0,90165.0,0.00016632]
[1765244309439,0.0665497,90166.0,90165.0,0.00016632]
[1765244309647,0.0675497,90166.0,90165.0,0.00016632]
[1765244310852,0.0675497,90166.0,90165.0,0.02793632]
[1765244311454,0.0675497,90166.0,90165.0,0.00016632]
[1765244312253,0.0279305,90160.0,90158.0,0.02777]
[1765244312454,0.05446,90159.0,90158.0,0.06876817]
[1765244312860,0.05446,90159.0,90158.0,0.45876817]
[1765244313261,0.05446,90159.0,90158.0,0.06876817]
[1765244314861,0.05446,90159.0,90158.0,0.06976817]
[1765244315262,0.05446,90159.0,90158.0,0.06876817]
[1765244315561,0.05446,90159.0,90158.0,0.06976817]
[1765244315862,0.05446,90159.0,90158.0,0.06876817]
[1765244316055,0.05446,90159.0,90158.0,0.06976817]
[1765244316254,0.05446,90159.0,90158.0,0.01222817]
[1765244316558,0.05446,90159.0,90158.0,0.06976817]
[1765244316755,0.05446,90159.0,90158.0,0.03999817]
[1765244317064,0.05446,90159.0,90158.0,0.06976817]
[1765244317660,0.05446,90159.0,90158.0,0.03899817]
[1765244317864,0.05446,90159.0,90158.0,0.03999817]
[1765244318159,0.05446,90159.0,90158.0,0.06876817]
[1765244318460,0.05446,90159.0,90158.0,0.06976817]
[1765244318664,0.05446,90159.0,90158.0,0.001]
[1765244318956,0.05446,90159.0,90158.0,0.01202695]
[1765244319159,0.05446,90159.0,90158.0,0.001]
[1765244319360,0.05446,90159.0,90158.0,0.02877]
[1765244319667,0.06555,90164.0,90163.0,0.05754]
[1765244320264,0.0655506,90159.0,90158.0,0.01236157]
[1765244320456,0.0655506,90159.0,90158.0,0.04013157]
[1765244320656,0.05446,90159.0,90158.0,0.06990157]
[1765244321155,0.05446,90159.0,90158.0,0.06890157]
[1765244321361,0.001,90164.0,90163.0,0.05754]
[1765244321767,0.02712,90164.0,90163.0,0.05754]
[1765244322066,0.05446,90176.0,90175.0,0.05754]
[1765244322471,0.07132,90176.0,90175.0,0.05754]
[1765244322762,0.05733,90170.0,90169.0,0.0675092]
[1765244323260,0.05733,90170.0,90169.0,0.4075092]
[1765244323468,0.02886,90170.0,90169.0,0.4075092]
[1765244323667,0.05733,90170.0,90169.0,0.0675092]
[1765244323962,0.05733,90170.0,90169.0,0.0685092]
[1765244324667,0.01786,90176.0,90175.0,0.0675086]
[1765244324668,0.02986,90176.0,90175.0,0.0675086]
[1765244324858,0.05833,90176.0,90175.0,0.0675086]
[1765244325257,0.05733,90176.0,90175.0,0.0675086]
[1765244325670,0.05733,90176.0,90175.0,0.3275086]
[1765244325867,0.05733,90182.0,90181.0,0.0675079]
[1765244326867,0.05749632,90184.0,90183.0,0.05642]
[1765244329169,0.05849632,90184.0,90183.0,0.05642]
[1765244331571,0.00116632,90184.0,90183.0,0.05642]
[1765244331777,0.00116632,90184.0,90183.0,0.48642]
[1765244331979,0.05849632,90184.0,90183.0,0.48642]
[1765244332165,0.00116632,90184.0,90183.0,0.48642]
[1765244332872,0.00110878,90190.0,90189.0,0.05642]
[1765244333174,0.00110878,90190.0,90189.0,0.4975069]
[1765244333366,0.07419,90208.0,90195.0,0.01643]
[1765244333567,0.05733,90208.0,90207.0,0.05642]
[1765244333880,0.0684142,90211.0,90205.0,0.0110848]
[1765244334078,0.0684142,90211.0,90210.0,0.05642]
[1765244335580,0.0694142,90211.0,90210.0,0.05642]
[1765244336480,0.0704142,90211.0,90210.0,0.05642]
[1765244337768,0.05933,90211.0,90210.0,0.05642]
[1765244339181,0.05833,90211.0,90210.0,0.05642]
[1765244339379,0.05833,90211.0,90210.0,0.0675043]
[1765244339774,0.05933,90211.0,90210.0,0.0675043]
[1765244339975,0.05933,90211.0,90210.0,0.05642]
[1765244340176,0.05733,90205.0,90204.0,0.05642]
[1765244340374,0.0684157,90199.0,90198.0,0.05658632]
[1765244340570,0.0684157,90199.0,90198.0,0.00016632]
[1765244341074,0.05733,90199.0,90198.0,0.05658632]
[1765244341470,0.05733,90199.0,90198.0,0.00016632]
[1765244342094,0.05733,90199.0,90198.0,0.05673632]
[1765244342280,0.05733,90199.0,90198.0,0.00016632]
[1765244342584,0.05933,90199.0,90198.0,0.05673632]
[1765244343084,0.40833,90199.0,90160.0,0.01587]
[1765244343275,0.05589,90168.0,90167.0,0.05657]
[1765244343479,0.07325,90167.0,90166.0,0.05671175]
[1765244343674,0.05589,90167.0,90166.0,0.43671175]
[1765244344684,0.05589,90167.0,90166.0,0.00014175]
[1765244344886,0.05689,90167.0,90166.0,0.00014175]
[1765244345282,0.05689,90167.0,90166.0,0.05671175]
[1765244346182,0.001,90167.0,90166.0,0.45671175]
[1765244346379,0.002,90167.0,90166.0,0.45671175]
[1765244346884,0.001,90167.0,90166.0,0.45671175]
[1765244347080,0.003,90167.0,90166.0,0.45671175]
[1765244347274,0.00016632,90176.0,90175.0,0.05657]
[1765244347473,0.00016632,90176.0,90175.0,0.46657]
[1765244347883,0.0669775,90185.0,90184.0,0.05657]
[1765244348087,0.0394164,90193.0,90192.0,0.05657]
[1765244348284,0.05589,90193.0,90192.0,0.05657]
[1765244349687,0.05689,90193.0,90192.0,0.05657]
[1765244349878,0.05689,90193.0,90192.0,0.37657]
[1765244350079,0.05689,90193.0,90192.0,0.12657]
[1765244350485,0.05789,90193.0,90192.0,0.12657]
[1765244350782,0.05789,90193.0,90192.0,0.05657]
[1765244351587,0.07325,90184.0,90183.0,0.21912341]
[1765244351792,0.07325,90184.0,90183.0,0.11673632]
[1765244351989,0.07325,90184.0,90183.0,0.00016632]
[1765244352192,0.45325,90184.0,90183.0,0.00016632]
[1765244353085,0.45325,90184.0,90183.0,0.00216632]
[1765244353288,0.08325,90184.0,90183.0,0.03002632]
[1765244353590,0.07325,90184.0,90183.0,0.05997632]
[1765244353789,0.05589,90184.0,90183.0,0.05997632]